fUSD/lending_fUSD_20250109
["ID","MTS","AMOUNT","RATE_DAILY","PERIOD"]
[348330501,1736446275911,-2408.14,0.00011063,2]
[348330502,1736446275921,-500.0,0.00011063,2]
[348330503,1736446275931,-1733.41,0.00011063,2]
[348330504,1736446275943,-500.0,0.00011063,2]
[348330505,1736446275953,-500.0,0.00011063,2]
[348330506,1736446275962,-500.0,0.00011063,2]
[348330507,1736446275972,-500.0,0.00011063,2]
[348330508,1736446275983,-6312.29,0.00011063,2]
[348330509,1736446275992,-325.82,0.00011063,2]
[348330510,1736446276002,-500.0,0.00011063,2]
[348330511,1736446276012,-500.0,0.00011063,2]
[348330512,1736446276022,-2345.7,0.00011063,2]
[348330513,1736446276032,-500.0,0.00011063,2]
[348330514,1736446276042,-336.23432762,0.00011063,2]
[348330515,1736446276052,-500.0,0.00011063,2]
[348330516,1736446276063,-500.0,0.00011063,2]
[348330517,1736446276072,-500.0,0.00011063,2]
[348330518,1736446276082,-500.0,0.00011063,2]
[348330519,1736446276092,-1289.19,0.00011063,2]
[348330520,1736446276102,-605.20091925,0.00011063,2]
[348330521,1736446276112,-500.0,0.00011063,2]
[348330522,1736446276122,-534.22,0.00011063,2]
[348330523,1736446276131,-500.0,0.00011063,2]
[348330524,1736446276142,-500.0,0.00011063,2]
[348330525,1736446276151,-500.0,0.00011063,2]
[348330526,1736446276161,-500.0,0.00011063,2]
[348330527,1736446276171,-500.0,0.00011063,2]
[348330528,1736446276181,-500.0,0.00011063,2]
[348330529,1736446276192,-959.38,0.00011063,2]
[348330530,1736446276204,-500.0,0.00011063,2]
[348330531,1736446276214,-500.0,0.00011063,2]
[348330532,1736446276224,-539.48,0.00011063,2]
[348330533,1736446276233,-500.0,0.00011063,2]
[348330534,1736446276243,-500.0,0.00011063,2]
[348330535,1736446276253,-626.84,0.00011063,2]
[348330536,1736446276263,-533.08559234,0.00011063,2]
[348330537,1736446276635,-590.62,0.00011063,2]
[348330538,1736446276659,-590.65,0.00011063,2]
[348330539,1736446276672,-736.38,0.00011063,2]
[348330540,1736446276683,-500.0,0.00011063,2]
[348330541,1736446276693,-222.40626884,0.00011063,2]
[348330542,1736446276703,-500.0,0.00011063,2]
[348330543,1736446276713,-500.0,0.00011063,2]
[348330544,1736446276722,-500.0,0.00011063,2]
[348330545,1736446276732,-500.0,0.00011063,2]
[348330546,1736446276741,-252.59,0.00011063,2]
[348330547,1736446276751,-500.0,0.00011063,2]
[348330548,1736446276761,-500.0,0.00011063,2]
[348330549,1736446276771,-835.57,0.00011063,2]
[348330550,1736446276786,-968.37,0.00011063,2]
[348330551,1736446276796,-500.0,0.00011063,2]
[348330552,1736446276805,-507.91,0.00011063,2]
[348330553,1736446276815,-500.0,0.00011063,2]
[348330554,1736446276825,-842.86,0.00011063,2]
[348330555,1736446276834,-888.38,0.00011063,2]
[348330556,1736446276844,-500.0,0.00011063,2]
[348330557,1736446276854,-809.97,0.00011063,2]
[348330558,1736446276863,-500.0,0.00011063,2]
[348330559,1736446276873,-500.0,0.00011063,2]
[348330560,1736446276883,-500.0,0.00011063,2]
[348330561,1736446276893,-500.0,0.00011063,2]
[348330562,1736446276902,-1158.79,0.00011063,2]
[348330563,1736446276912,-500.0,0.00011063,2]
[348330564,1736446276921,-534.68995812,0.00011063,2]
[348330565,1736446276931,-558.91,0.00011063,2]
[348330566,1736446276940,-500.0,0.00011063,2]
[348330567,1736446276951,-500.0,0.00011063,2]
[348330568,1736446276961,-1242.9,0.00011063,2]
[348330569,1736446276971,-500.0,0.00011063,2]
[348330570,1736446276981,-626.08,0.00011063,2]
[348330571,1736446276991,-1185.16,0.00011063,2]
[348330572,1736446277002,-500.0,0.00011063,2]
[348330573,1736446277011,-500.0,0.00011063,2]
[348330574,1736446277021,-500.0,0.00011063,2]
[348330575,1736446277030,-690.26868542,0.00011063,2]
[348330576,1736446277996,-500.0,9.691e-05,2]
[348330577,1736446278006,-500.0,9.692e-05,2]
[348330578,1736446278016,-500.0,9.692e-05,2]
[348330579,1736446278025,-156.083881,9.692e-05,2]
[348330580,1736446278035,-500.0,9.692e-05,2]
[348330581,1736446278045,-500.0,9.692e-05,2]
[348330582,1736446278056,-294.23653897,9.965e-05,2]
[348330583,1736446278067,-500.0,9.966e-05,2]
[348330584,1736446278077,-225.62,9.966e-05,2]
[348330585,1736446278087,-156.083881,9.966e-05,2]
[348330586,1736446278097,-500.0,0.0001024,2]
[348330587,1736446278106,-156.083881,0.0001024,2]
[348330588,1736446278116,-500.0,0.00010514,2]
[348330589,1736446278127,-156.083881,0.00010514,2]
[348330590,1736446278137,-1731.07,0.00010787,2]
[348330591,1736446278147,-633.16,0.00010788,2]
[348330592,1736446278157,-156.083881,0.00010788,2]
[348330593,1736446278167,-626.44131458,0.00011063,2]
[348330594,1736446278177,-306.78667949,0.00011063,2]
[348330595,1736446278187,-698.36606196,0.00011063,2]
[348330596,1736446278201,-521.56177382,0.00011063,2]
[348330597,1736446278213,-971.94184,0.00011063,2]
[348330598,1736446278241,-273.75776622,9.966e-05,2]
[348330599,1736446278253,-229.40264068,9.966e-05,2]
[348330600,1736446278263,-328.20735782,0.00011063,2]
[348330601,1736446278275,-256.8629664,0.00011063,2]
[348330602,1736446278284,-76.02107757,0.00011063,2]
[348330603,1736446278296,-500.0,0.00011063,2]
[348330604,1736446278308,-1015.79892243,0.00011063,2]
[348330605,1736446278317,-1402.8,0.00011063,2]
[348330606,1736446278327,-900.32,0.00011063,2]
[348330607,1736446278336,-349.10260439,0.00011067,2]
[348330608,1736446278348,-650.89739561,0.00011067,2]
[348330609,1736446278358,-338.08413964,0.00011098,2]
[348330610,1736446278383,-203.54586036,0.00011098,2]
[348330611,1736446278393,-202.16575369,0.000111,2]
[348330612,1736446278403,-11204.46627815,0.00011114,2]
[348330613,1736446281963,588.54998481,0.0002,120]
[348330614,1736446324024,500.0,8.22e-05,2]
[348330615,1736446400339,2400.0,8.22e-05,2]
[348330616,1736446400380,900.0,8.22e-05,2]
[348330617,1736446503707,173.0,8.22e-05,30]
[348330620,1736446803148,174.0,8.22e-05,30]
[348330621,1736447060418,576.56,8.219e-05,2]
[348330706,1736447432255,-1000.0,8.654e-05,2]
[348330707,1736447432265,-216.65,8.697e-05,2]
[348330708,1736447432275,-206.46962424,8.735e-05,2]
[348330709,1736447432285,-250.0,8.735e-05,2]
[348330710,1736447432295,-2398.90377463,8.907e-05,2]
[348330711,1736447432306,-786.25622537,8.907e-05,2]
[348330712,1736447432315,-150.0,9e-05,2]
[348330713,1736447432325,-150.0,9e-05,2]
[348330714,1736447432334,-300.0,9.026e-05,2]
[348330715,1736447432344,-15782.61,9.027e-05,2]
[348330716,1736447432353,-1100.0,9.2e-05,3]
[348330717,1736447432363,-1116.22748198,9.205e-05,2]
[348330718,1736447432372,-1116.22748198,9.205e-05,2]
[348330719,1736447432382,-2300.0,9.3e-05,3]
[348330720,1736447432392,-3400.0,9.4e-05,3]
[348330721,1736447432401,-190.15,9.496e-05,2]
[348330722,1736447432410,-150.0,9.5e-05,2]
[348330723,1736447432419,-4600.0,9.5e-05,3]
[348330724,1736447432430,-170.16,9.572e-05,2]
[348330725,1736447432440,-61.1180316,9.572e-05,2]
[348330726,1736447432452,-188.8819684,9.572e-05,2]
[348330727,1736447432462,-608.69712614,9.59e-05,2]
[348330728,1736447432473,-623.44006736,9.59e-05,2]
[348330729,1736447432485,-1167.8628065,9.59e-05,2]
[348330730,1736447432494,-900.0,9.59e-05,2]
[348330731,1736447432504,-224.56964651,9.591e-05,2]
[348330732,1736447432556,-3026.31765349,9.591e-05,2]
[348330733,1736447432566,-878.14836876,9.591e-05,2]
[348330734,1736447432576,-150.0,9.591e-05,2]
[348330735,1736447432586,-281.09781858,9.592e-05,2]
[348330736,1736447432596,-152.028,9.592e-05,2]
[348330737,1736447432605,-1455.8862,9.592e-05,2]
[348330738,1736447432615,-845.59195917,9.592e-05,2]
[348330739,1736447432628,-3071.705,9.592e-05,2]
[348330740,1736447432639,-2864.03000014,9.592e-05,2]
[348330741,1736447432651,-413.01574069,9.592e-05,2]
[348330742,1736447432661,-2245.2682,9.592e-05,2]
[348330743,1736447432670,-783.16605931,9.6e-05,3]
[348330744,1736447432683,-3096.154,9.6e-05,3]
[348330745,1736447432702,-1820.67994069,9.6e-05,3]
[348330746,1736447432712,-1000.0,9.668e-05,2]
[348330747,1736447432722,-2500.0,9.668e-05,2]
[348330748,1736447432732,-500.0,9.691e-05,2]
[348330749,1736447432742,-500.0,9.691e-05,2]
[348330750,1736447432752,-500.0,9.691e-05,2]
[348330751,1736447432762,-500.0,9.691e-05,2]
[348330752,1736447432772,-500.0,9.691e-05,2]
[348330753,1736447432782,-500.0,9.691e-05,2]
[348330754,1736447432792,-649.3,9.691e-05,2]
[348330756,1736447432801,-607.32,9.691e-05,2]
[348330758,1736447432811,-500.0,9.691e-05,2]
[348330759,1736447432821,-156.995149,9.691e-05,2]
[348330760,1736447432832,-500.0,9.691e-05,2]
[348330761,1736447432842,-500.0,9.691e-05,2]
[348330762,1736447432853,-500.0,9.691e-05,2]
[348330763,1736447432863,-500.0,9.691e-05,2]
[348330764,1736447432873,-616.32,9.691e-05,2]
[348330765,1736447432883,-500.0,9.691e-05,2]
[348330766,1736447432893,-500.0,9.691e-05,2]
[348330767,1736447432903,-500.0,9.691e-05,2]
[348330769,1736447432913,-500.0,9.691e-05,2]
[348330771,1736447432924,-596.62,9.691e-05,2]
[348330773,1736447432934,-500.0,9.691e-05,2]
[348330775,1736447432944,-500.0,9.691e-05,2]
[348330777,1736447432953,-500.0,9.691e-05,2]
[348330779,1736447432963,-502.53,9.691e-05,2]
[348330781,1736447432972,-818.69,9.691e-05,2]
[348330783,1736447432982,-500.0,9.691e-05,2]
[348330785,1736447432992,-773.71,9.691e-05,2]
[348330787,1736447433001,-500.0,9.691e-05,2]
[348330789,1736447433010,-500.0,9.691e-05,2]
[348330791,1736447433019,-500.0,9.691e-05,2]
[348330793,1736447433029,-500.0,9.691e-05,2]
[348330795,1736447433038,-500.0,9.691e-05,2]
[348330796,1736447433048,-501.36,9.691e-05,2]
[348330798,1736447433057,-500.0,9.691e-05,2]
[348330800,1736447433067,-604.25,9.691e-05,2]
[348330802,1736447433077,-518.92,9.691e-05,2]
[348330803,1736447433087,-500.0,9.691e-05,2]
[348330804,1736447433101,-500.0,9.691e-05,2]
[348330806,1736447433112,-500.0,9.691e-05,2]
[348330808,1736447433121,-500.0,9.691e-05,2]
[348330810,1736447433131,-526.65,9.691e-05,2]
[348330812,1736447433141,-500.0,9.691e-05,2]
[348330814,1736447433150,-500.0,9.691e-05,2]
[348330816,1736447433160,-559.1,9.691e-05,2]
[348330818,1736447433170,-586.81,9.691e-05,2]
[348330820,1736447433183,-621.54,9.691e-05,2]
[348330823,1736447433194,-500.0,9.691e-05,2]
[348330825,1736447433204,-500.0,9.691e-05,2]
[348330827,1736447433214,-500.0,9.691e-05,2]
[348330828,1736447433224,-500.0,9.691e-05,2]
[348330830,1736447433234,-500.0,9.691e-05,2]
[348330832,1736447433244,-500.0,9.691e-05,2]
[348330834,1736447433254,-500.0,9.691e-05,2]
[348330836,1736447433264,-500.0,9.691e-05,2]
[348330838,1736447433274,-502.95,9.691e-05,2]
[348330840,1736447433285,-500.0,9.691e-05,2]
[348330841,1736447433294,-638.49,9.691e-05,2]
[348330842,1736447433305,-1011.55,9.691e-05,2]
[348330843,1736447433315,-632.45,9.691e-05,2]
[348330844,1736447433325,-500.0,9.691e-05,2]
[348330845,1736447433336,-1260.01,9.691e-05,2]
[348330846,1736447433346,-500.0,9.691e-05,2]
[348330847,1736447433355,-500.0,9.691e-05,2]
[348330848,1736447433364,-500.0,9.691e-05,2]
[348330849,1736447433374,-500.0,9.691e-05,2]
[348330850,1736447433383,-500.0,9.691e-05,2]
[348330851,1736447433393,-857.37,9.691e-05,2]
[348330852,1736447433404,-500.0,9.691e-05,2]
[348330853,1736447433414,-500.0,9.691e-05,2]
[348330854,1736447433423,-500.0,9.691e-05,2]
[348330855,1736447433435,-500.0,9.691e-05,2]
[348330856,1736447433444,-2211.5,9.691e-05,2]
[348330857,1736447433454,-500.0,9.691e-05,2]
[348330858,1736447433464,-500.0,9.691e-05,2]
[348330859,1736447433473,-509.54,9.691e-05,2]
[348330860,1736447433482,-1596.29,9.691e-05,2]
[348330861,1736447433493,-500.0,9.691e-05,2]
[348330862,1736447433503,-5371.64,9.691e-05,2]
[348330863,1736447433513,-925.38,9.691e-05,2]
[348330864,1736447433524,-500.0,9.691e-05,2]
[348330865,1736447433534,-402.14982429,9.691e-05,2]
[348330866,1736447433546,-136.60017571,9.691e-05,2]
[348330867,1736447433556,-1828.05982429,9.691e-05,2]
[348330878,1736447438087,-334.09017571,9.691e-05,2]
[348330879,1736447438100,-500.0,9.691e-05,2]
[348330880,1736447438110,-500.0,9.691e-05,2]
[348330881,1736447438119,-576.11,9.691e-05,2]
[348330882,1736447438128,-574.65,9.691e-05,2]
[348330883,1736447438140,-1295.06,9.691e-05,2]
[348330884,1736447438150,-706.38,9.691e-05,2]
[348330885,1736447438159,-500.0,9.691e-05,2]
[348330886,1736447438169,-265.14643546,9.692e-05,2]
[348330887,1736447438179,-500.0,9.692e-05,2]
[348330888,1736447438195,-500.0,9.692e-05,2]
[348330889,1736447438204,-500.0,9.692e-05,2]
[348330890,1736447438213,-500.0,9.692e-05,2]
[348330891,1736447438223,-500.0,9.692e-05,2]
[348330892,1736447438233,-500.0,9.692e-05,2]
[348330893,1736447438242,-500.0,9.692e-05,2]
[348330894,1736447438252,-500.0,9.692e-05,2]
[348330895,1736447438261,-500.0,9.692e-05,2]
[348330896,1736447438271,-500.0,9.692e-05,2]
[348330897,1736447438281,-500.0,9.692e-05,2]
[348330898,1736447438291,-500.0,9.692e-05,2]
[348330899,1736447438301,-500.0,9.692e-05,2]
[348330900,1736447438310,-500.0,9.692e-05,2]
[348330901,1736447438320,-500.0,9.692e-05,2]
[348330902,1736447438330,-500.0,9.692e-05,2]
[348330903,1736447438339,-500.0,9.692e-05,2]
[348330904,1736447438348,-500.0,9.692e-05,2]
[348330905,1736447438358,-500.0,9.692e-05,2]
[348330906,1736447438367,-500.0,9.692e-05,2]
[348330907,1736447438377,-500.0,9.692e-05,2]
[348330908,1736447438387,-500.0,9.692e-05,2]
[348330909,1736447438397,-500.0,9.692e-05,2]
[348330910,1736447438407,-275.04007865,9.692e-05,2]
[348330911,1736447438418,-500.0,9.692e-05,2]
[348330912,1736447438428,-500.0,9.692e-05,2]
[348330913,1736447438442,-500.0,9.692e-05,2]
[348330914,1736447438452,-500.0,9.692e-05,2]
[348330915,1736447438461,-500.0,9.692e-05,2]
[348330916,1736447438471,-500.0,9.692e-05,2]
[348330917,1736447438480,-500.0,9.692e-05,2]
[348330918,1736447438490,-500.0,9.692e-05,2]
[348330920,1736447438499,-500.0,9.692e-05,2]
[348330922,1736447438508,-500.0,9.692e-05,2]
[348330924,1736447438518,-500.0,9.692e-05,2]
[348330926,1736447438527,-500.0,9.692e-05,2]
[348330928,1736447438536,-3386.52,9.692e-05,2]
[348330930,1736447438545,-827.06,9.692e-05,2]
[348330932,1736447438554,-500.0,9.692e-05,2]
[348330934,1736447438564,-723.36,9.692e-05,2]
[348330936,1736447438573,-500.0,9.692e-05,2]
[348330938,1736447438584,-700.48,9.692e-05,2]
[348330940,1736447438593,-500.0,9.692e-05,2]
[348330942,1736447438602,-500.0,9.692e-05,2]
[348330944,1736447438611,-500.0,9.692e-05,2]
[348330946,1736447438620,-500.0,9.692e-05,2]
[348330948,1736447438630,-502.51,9.692e-05,2]
[348330950,1736447438639,-500.0,9.692e-05,2]
[348330952,1736447438648,-500.0,9.692e-05,2]
[348330954,1736447438657,-500.0,9.692e-05,2]
[348330956,1736447438667,-793.56,9.692e-05,2]
[348330958,1736447438676,-500.0,9.692e-05,2]
[348330960,1736447438687,-798.33,9.692e-05,2]
[348330962,1736447438697,-1152.87,9.692e-05,2]
[348330964,1736447438706,-1208.43,9.692e-05,2]
[348330966,1736447438715,-1262.88,9.692e-05,2]
[348330968,1736447438725,-1717.69,9.692e-05,2]
[348330970,1736447438735,-2721.71,9.692e-05,2]
[348330972,1736447438745,-129.95563921,9.692e-05,2]
[348330977,1736447438784,-506.51,9.692e-05,2]
[348330979,1736447438796,-800.73436079,9.692e-05,2]
[348330981,1736447438805,-861.52,9.692e-05,2]
[348330983,1736447438816,-1827.71,9.692e-05,2]
[348330985,1736447438826,-1827.71,9.692e-05,2]
[348330987,1736447438835,-500.0,9.692e-05,2]
[348330989,1736447438845,-546.22,9.693e-05,2]
[348330991,1736447438855,-1200.09,9.693e-05,2]
[348330993,1736447438864,-579.54,9.693e-05,2]
[348330995,1736447438874,-554.86,9.693e-05,2]
[348330997,1736447438883,-662.12,9.693e-05,2]
[348330999,1736447438893,-500.0,9.693e-05,2]
[348331001,1736447438902,-1039.38,9.693e-05,2]
[348331003,1736447438911,-648.19,9.693e-05,2]
[348331005,1736447438920,-1572.55,9.693e-05,2]
[348331007,1736447438933,-997.91,9.693e-05,2]
[348331009,1736447438943,-1480.76,9.693e-05,2]
[348331011,1736447438952,-1505.84,9.693e-05,2]
[348331013,1736447438962,-1901.42,9.693e-05,2]
[348331015,1736447438971,-2170.0,9.693e-05,2]
[348331017,1736447438980,-6791.89,9.693e-05,2]
[348331019,1736447438989,-1052.14,9.693e-05,2]
[348331021,1736447438999,-665.09,9.693e-05,2]
[348331023,1736447439008,-901.48,9.693e-05,2]
[348331025,1736447439018,-1891.74,9.693e-05,2]
[348331027,1736447439027,-500.0,9.693e-05,2]
[348331029,1736447439036,-500.0,9.693e-05,2]
[348331030,1736447439045,-658.47,9.693e-05,2]
[348331032,1736447439054,-1395.72,9.693e-05,2]
[348331035,1736447439064,-945.86,9.693e-05,2]
[348331036,1736447439073,-1100.0,9.7e-05,3]
[348331037,1736447439082,-1000.0,9.735e-05,2]
[348331038,1736447439091,-790.8897,9.763e-05,2]
[348331039,1736447439105,-27820.0,9.768e-05,2]
[348331040,1736447439114,-216.65,9.784e-05,2]
[348331041,1736447439125,-500.0,9.794e-05,2]
[348331042,1736447439134,-500.0,9.794e-05,2]
[348331044,1736447439145,-500.0,9.794e-05,2]
[348331046,1736447439154,-500.0,9.794e-05,2]
[348331048,1736447439164,-855.64,9.794e-05,2]
[348331050,1736447439173,-500.0,9.794e-05,2]
[348331052,1736447439186,-777.83,9.794e-05,2]
[348331054,1736447439195,-500.0,9.794e-05,2]
[348331056,1736447439205,-500.0,9.794e-05,2]
[348331058,1736447439214,-1000.0,9.795e-05,2]
[348331060,1736447439223,-764.35,9.795e-05,2]
[348331062,1736447439233,-500.0,9.795e-05,2]
[348331064,1736447439242,-1663.89,9.795e-05,2]
[348331066,1736447439252,-1243.03,9.795e-05,2]
[348331068,1736447439261,-2085.76993624,9.8e-05,2]
[348331070,1736447439270,-1100.0,9.8e-05,3]
[348331072,1736447439280,-150.0,9.832e-05,2]
[348331074,1736447439289,-1832.05,9.862e-05,2]
[348331076,1736447439298,-5556.98,9.862e-05,2]
[348331078,1736447439307,-500.0,9.862e-05,2]
[348331080,1736447439316,-759.98,9.862e-05,2]
[348331082,1736447439326,-1167.6,9.862e-05,2]
[348331084,1736447439335,-942.29,9.862e-05,2]
[348331086,1736447439345,-1712.26,9.862e-05,2]
[348331088,1736447439354,-500.0,9.862e-05,2]
[348331090,1736447439364,-500.0,9.862e-05,2]
[348331092,1736447439373,-2286.07,9.862e-05,2]
[348331094,1736447439382,-3811.85,9.862e-05,2]
[348331096,1736447439391,-3234.66,9.862e-05,2]
[348331098,1736447439400,-1661.43,9.862e-05,2]
[348331100,1736447439409,-1022.16,9.862e-05,2]
[348331102,1736447439418,-500.0,9.862e-05,2]
[348331104,1736447439428,-1163.31,9.862e-05,2]
[348331106,1736447439442,-549.01,9.862e-05,2]
[348331108,1736447439451,-2585.24,9.862e-05,2]
[348331110,1736447439460,-1382.98,9.862e-05,2]
[348331112,1736447439470,-500.0,9.862e-05,2]
[348331114,1736447439479,-1108.72,9.862e-05,2]
[348331116,1736447439488,-500.0,9.862e-05,2]
[348331118,1736447439497,-500.0,9.862e-05,2]
[348331120,1736447439507,-500.0,9.862e-05,2]
[348331122,1736447439516,-2356.61,9.862e-05,2]
[348331124,1736447439525,-500.0,9.862e-05,2]
[348331126,1736447439534,-3091.53,9.862e-05,2]
[348331128,1736447439544,-1042.31,9.862e-05,2]
[348331130,1736447439553,-612.50308259,9.863e-05,2]
[348331132,1736447439562,-500.0,9.863e-05,2]
[348331134,1736447439571,-500.0,9.863e-05,2]
[348331136,1736447439581,-567.57,9.863e-05,2]
[348331138,1736447439590,-500.0,9.863e-05,2]
[348331140,1736447439599,-632.02,9.863e-05,2]
[348331142,1736447439610,-500.0,9.863e-05,2]
[348331144,1736447439619,-500.0,9.863e-05,2]
[348331146,1736447439628,-500.0,9.863e-05,2]
[348331148,1736447439637,-500.0,9.863e-05,2]
[348331150,1736447439647,-500.0,9.863e-05,2]
[348331152,1736447439656,-500.0,9.863e-05,2]
[348331154,1736447439665,-500.0,9.863e-05,2]
[348331156,1736447439675,-500.0,9.863e-05,2]
[348331158,1736447439687,-1005.32,9.863e-05,2]
[348331160,1736447439696,-500.0,9.863e-05,2]
[348331162,1736447439705,-500.0,9.863e-05,2]
[348331164,1736447439714,-500.0,9.863e-05,2]
[348331166,1736447439724,-500.0,9.863e-05,2]
[348331168,1736447439733,-500.0,9.863e-05,2]
[348331170,1736447439743,-500.0,9.863e-05,2]
[348331172,1736447439752,-500.0,9.863e-05,2]
[348331174,1736447439761,-500.0,9.863e-05,2]
[348331176,1736447439771,-641.48,9.863e-05,2]
[348331178,1736447439780,-500.0,9.863e-05,2]
[348331180,1736447439789,-788.98,9.863e-05,2]
[348331182,1736447439798,-500.0,9.863e-05,2]
[348331184,1736447439807,-553.79,9.863e-05,2]
[348331185,1736447439817,-813.34,9.863e-05,2]
[348331187,1736447439826,-500.0,9.863e-05,2]
[348331190,1736447439836,-500.0,9.863e-05,2]
[348331191,1736447439845,-500.0,9.863e-05,2]
[348331193,1736447439855,-500.0,9.863e-05,2]
[348331195,1736447439864,-3076.19,9.863e-05,2]
[348331198,1736447439874,-500.0,9.863e-05,2]
[348331199,1736447439883,-1930.48,9.863e-05,2]
[348331201,1736447439892,-500.0,9.863e-05,2]
[348331203,1736447439902,-640.71,9.863e-05,2]
[348331205,1736447439911,-500.0,9.863e-05,2]
[348331207,1736447439921,-2030.8,9.863e-05,2]
[348331209,1736447439932,-698.25,9.863e-05,2]
[348331212,1736447439942,-511.43,9.863e-05,2]
[348331213,1736447439951,-500.0,9.863e-05,2]
[348331215,1736447439961,-612.64,9.863e-05,2]
[348331217,1736447439970,-757.69,9.863e-05,2]
[348331219,1736447439980,-500.0,9.863e-05,2]
[348331221,1736447439990,-736.05,9.863e-05,2]
[348331222,1736447439999,-500.0,9.863e-05,2]
[348331223,1736447440009,-500.0,9.863e-05,2]
[348331224,1736447440018,-706.14,9.863e-05,2]
[348331225,1736447440027,-563.90284275,9.863e-05,2]
[348331226,1736447440036,-976.68,9.864e-05,2]
[348331227,1736447440046,-798.1,9.864e-05,2]
[348331228,1736447440055,-654.41,9.864e-05,2]
[348331229,1736447440065,-500.0,9.864e-05,2]
[348331231,1736447440074,-500.0,9.864e-05,2]
[348331232,1736447440083,-702.07,9.864e-05,2]
[348331234,1736447440094,-500.0,9.864e-05,2]
[348331236,1736447440107,-592.74,9.864e-05,2]
[348331238,1736447440116,-523.26,9.864e-05,2]
[348331240,1736447440125,-500.0,9.864e-05,2]
[348331242,1736447440134,-500.0,9.864e-05,2]
[348331244,1736447440145,-500.0,9.864e-05,2]
[348331246,1736447440154,-1405.96,9.864e-05,2]
[348331248,1736447440163,-500.0,9.864e-05,2]
[348331250,1736447440173,-574.48,9.864e-05,2]
[348331252,1736447440184,-500.0,9.864e-05,2]
[348331254,1736447440194,-624.5,9.864e-05,2]
[348331256,1736447440204,-607.14,9.864e-05,2]
[348331258,1736447440213,-583.803675,9.864e-05,2]
[348331260,1736447440223,-845.99,9.864e-05,2]
[348331262,1736447440232,-500.0,9.864e-05,2]
[348331264,1736447440241,-500.0,9.864e-05,2]
[348331266,1736447440250,-500.0,9.864e-05,2]
[348331268,1736447440259,-614.508234,9.864e-05,2]
[348331270,1736447440268,-500.0,9.864e-05,2]
[348331272,1736447440279,-829.41,9.864e-05,2]
[348331274,1736447440289,-160.555943,9.864e-05,2]
[348331276,1736447440298,-500.0,9.864e-05,2]
[348331278,1736447440308,-159.495154,9.864e-05,2]
[348331280,1736447440318,-500.0,9.864e-05,2]
[348331282,1736447440327,-500.0,9.864e-05,2]
[348331308,1736447440565,-500.0,9.864e-05,2]
[348331310,1736447440575,-752.85,9.864e-05,2]
[348331312,1736447440585,-179.837763,9.864e-05,2]
[348331314,1736447440594,-500.0,9.864e-05,2]
[348331316,1736447440605,-894.92,9.864e-05,2]
[348331318,1736447440615,-677.6,9.864e-05,2]
[348331320,1736447440625,-500.0,9.864e-05,2]
[348331321,1736447440635,-611.45,9.864e-05,2]
[348331323,1736447440644,-500.0,9.864e-05,2]
[348331326,1736447440654,-500.0,9.864e-05,2]
[348331328,1736447440664,-2469.65,9.864e-05,2]
[348331330,1736447440674,-500.0,9.864e-05,2]
[348331331,1736447440685,-515.73,9.864e-05,2]
[348331334,1736447440695,-500.0,9.864e-05,2]
[348331336,1736447440704,-500.0,9.864e-05,2]
[348331338,1736447440714,-661.98,9.864e-05,2]
[348331340,1736447440724,-1087.13,9.864e-05,2]
[348331342,1736447440734,-500.0,9.864e-05,2]
[348331343,1736447440743,-500.0,9.864e-05,2]
[348331346,1736447440753,-607.76,9.864e-05,2]
[348331348,1736447440763,-559.49,9.864e-05,2]
[348331350,1736447440773,-559.72,9.864e-05,2]
[348331352,1736447440784,-500.0,9.864e-05,2]
[348331353,1736447440794,-500.0,9.864e-05,2]
[348331356,1736447440805,-1975.63,9.864e-05,2]
[348331357,1736447440815,-564.94,9.864e-05,2]